[Event "Titled Tuesday Blitz October 31 Late 2023"]
[White "Sivakumar, Shaaketh"]
[Black "Hakobyan, Aram"]
[WhiteFideId "30940176"]
[BlackFideId "13306677"]
[WhiteElo "2613"]
[BlackElo "3046"]
[Result "1-0"]
[Round "7"]
[TimeControl "180+1"]
[Date "2023.10.31"]
[WhiteClock "0:00:55"]
[BlackClock "0:00:00"]
[Board "20"]

1. e4 {[%clk 0:03:00]}  c5 {[%clk 0:02:58]} 2. Nf3 {[%clk 0:02:56]}  Nc6 {[%clk 0:02:58]} 3. Bb5 {[%clk 0:02:55]}  e6 {[%clk 0:02:58]} 4. O-O {[%clk 0:02:54]}  Nge7 {[%clk 0:02:59]} 5. Re1 {[%clk 0:02:53]}  a6 {[%clk 0:02:57]} 6. Bf1 {[%clk 0:02:53]}  Nd4 {[%clk 0:02:58]} 7. c3 {[%clk 0:02:52]}  Nxf3+ {[%clk 0:02:58]} 8. Qxf3 {[%clk 0:02:53]}  Nc6 {[%clk 0:02:58]} 9. b3 {[%clk 0:02:52]}  Be7 {[%clk 0:02:58]} 10. Bb2 {[%clk 0:02:52]}  O-O {[%clk 0:02:59]} 11. d4 {[%clk 0:02:52]}  cxd4 {[%clk 0:03:00]} 12. cxd4 {[%clk 0:02:53]}  Nb4 {[%clk 0:02:55]} 13. Qc3 {[%clk 0:02:52]}  d5 {[%clk 0:02:54]} 14. e5 {[%clk 0:02:50]}  Nc6 {[%clk 0:02:54]} 15. Qh3 {[%clk 0:02:47]}  f6 {[%clk 0:02:52]} 16. Bd3 {[%clk 0:02:46]}  g6 {[%clk 0:02:48]} 17. Qh6 {[%clk 0:02:42]}  Qe8 {[%clk 0:02:46]} 18. Nd2 {[%clk 0:02:43]}  fxe5 {[%clk 0:02:30]} 19. dxe5 {[%clk 0:02:43]}  Qf7 {[%clk 0:02:27]} 20. Nf3 {[%clk 0:02:42]}  Bd7 {[%clk 0:02:27]} 21. Rad1 {[%clk 0:02:34]}  Rac8 {[%clk 0:02:23]} 22. Kh1 {[%clk 0:02:28]}  Qf4 {[%clk 0:02:05]} 23. Qh3 {[%clk 0:02:23]}  Nb4 {[%clk 0:02:02]} 24. Bb1 {[%clk 0:02:22]}  Rc7 {[%clk 0:01:19]} 25. Rd4 {[%clk 0:02:21]}  Qf7 {[%clk 0:01:19]} 26. Rg4 {[%clk 0:02:20]}  Rfc8 {[%clk 0:01:16]} 27. Qh5 {[%clk 0:02:17]}  Be8 {[%clk 0:01:11]} 28. Qh6 {[%clk 0:02:10]}  Nc2 {[%clk 0:01:09]} 29. Rf1 {[%clk 0:02:08]}  Bb5 {[%clk 0:00:58]} 30. Rc1 {[%clk 0:02:03]}  Be2 {[%clk 0:00:54]} 31. Ng5 {[%clk 0:01:56]}  Bxg5 {[%clk 0:00:43]} 32. Rxg5 {[%clk 0:01:57]}  Bd3 {[%clk 0:00:36]} 33. Qh3 {[%clk 0:01:50]}  Nb4 {[%clk 0:00:15]} 34. Rxc7 {[%clk 0:01:49]}  Qxc7 {[%clk 0:00:15]} 35. Qxe6+ {[%clk 0:01:50]}  Kf8 {[%clk 0:00:13]} 36. Qf6+ {[%clk 0:01:47]}  Kg8 {[%clk 0:00:12]} 37. Qe6+ {[%clk 0:01:45]}  Kf8 {[%clk 0:00:09]} 38. h4 {[%clk 0:01:37]}  Bxb1 {[%clk 0:00:08]} 39. Qf6+ {[%clk 0:01:37]}  Ke8 {[%clk 0:00:07]} 40. e6 {[%clk 0:01:34]}  Qe7 {[%clk 0:00:03]} 41. Qh8+ {[%clk 0:01:33]}  Qf8 {[%clk 0:00:03]} 42. Qxh7 {[%clk 0:01:33]}  Qe7 {[%clk 0:00:01]} 43. Qh6 {[%clk 0:01:15]}  Qf8 {[%clk 0:00:02]} 44. Qh7 {[%clk 0:01:08]}  Qe7 {[%clk 0:00:02]} 45. Bg7 {[%clk 0:01:04]}  Rc1+ {[%clk 0:00:02]} 46. Kh2 {[%clk 0:01:04]}  Qxe6 {[%clk 0:00:01]} 47. Re5 {[%clk 0:01:04]}  Qxe5+ {[%clk 0:00:01]} 48. Bxe5 {[%clk 0:01:05]}  Nc6 {[%clk 0:00:01]} 49. Qg8+ {[%clk 0:01:03]}  Kd7 {[%clk 0:00:01]} 50. Qf7+ {[%clk 0:01:02]}  Kd8 {[%clk 0:00:02]} 51. Bd6 {[%clk 0:00:59]}  Re1 {[%clk 0:00:00]} 52. Qxd5 {[%clk 0:00:55]} 1-0


[Site "https://www.chess.com"]

[Event "Titled Tuesday Blitz October 31 Late 2023"]
[White "Elsa167"]
[Black "Al-Tarboush, Ward"]
[BlackFideId "7601450"]
[WhiteElo "2952"]
[BlackElo "2662"]
[Result "1-0"]
[Round "7"]
[TimeControl "180+1"]
[Date "2023.10.31"]
[WhiteClock "0:00:09"]
[BlackClock "0:00:12"]
[Board "22"]

1. e4 {[%clk 0:03:00]}  c5 {[%clk 0:02:59]} 2. Nf3 {[%clk 0:03:01]}  e6 {[%clk 0:03:00]} 3. d3 {[%clk 0:02:59]}  Nc6 {[%clk 0:02:59]} 4. g3 {[%clk 0:02:59]}  d6 {[%clk 0:03:00]} 5. Bg2 {[%clk 0:02:59]}  Nf6 {[%clk 0:03:00]} 6. O-O {[%clk 0:03:00]}  Be7 {[%clk 0:03:01]} 7. Re1 {[%clk 0:03:00]}  O-O {[%clk 0:03:00]} 8. c3 {[%clk 0:03:01]}  Bd7 {[%clk 0:03:00]} 9. d4 {[%clk 0:03:01]}  d5 {[%clk 0:02:56]} 10. e5 {[%clk 0:02:59]}  Ne4 {[%clk 0:02:56]} 11. Nbd2 {[%clk 0:02:59]}  Nxd2 {[%clk 0:02:54]} 12. Bxd2 {[%clk 0:03:00]}  Qb6 {[%clk 0:02:53]} 13. Kh1 {[%clk 0:02:34]}  Rac8 {[%clk 0:02:42]} 14. Rb1 {[%clk 0:02:26]}  cxd4 {[%clk 0:02:42]} 15. cxd4 {[%clk 0:02:26]}  Nb4 {[%clk 0:02:42]} 16. Qb3 {[%clk 0:02:07]}  a5 {[%clk 0:02:25]} 17. Bc3 {[%clk 0:01:48]}  a4 {[%clk 0:02:22]} 18. Qd1 {[%clk 0:01:48]}  Nxa2 {[%clk 0:02:21]} 19. Bf1 {[%clk 0:01:37]}  Nxc3 {[%clk 0:02:14]} 20. bxc3 {[%clk 0:01:37]}  Qa7 {[%clk 0:02:13]} 21. Qc2 {[%clk 0:01:25]}  a3 {[%clk 0:02:11]} 22. Bd3 {[%clk 0:01:23]}  g6 {[%clk 0:02:07]} 23. h4 {[%clk 0:01:22]}  Qa5 {[%clk 0:02:06]} 24. Rec1 {[%clk 0:01:17]}  Rc7 {[%clk 0:01:30]} 25. h5 {[%clk 0:01:11]}  Kg7 {[%clk 0:01:30]} 26. hxg6 {[%clk 0:01:06]}  hxg6 {[%clk 0:01:31]} 27. Kg2 {[%clk 0:01:04]}  Rfc8 {[%clk 0:01:30]} 28. Qd2 {[%clk 0:01:03]}  Rh8 {[%clk 0:01:21]} 29. Nh2 {[%clk 0:00:51]}  b5 {[%clk 0:01:14]} 30. Ng4 {[%clk 0:00:49]}  Qa7 {[%clk 0:01:02]} 31. Rh1 {[%clk 0:00:41]}  Rcc8 {[%clk 0:01:03]} 32. Rh6 {[%clk 0:00:42]}  b4 {[%clk 0:00:43]} 33. Rbh1 {[%clk 0:00:38]}  Qa8 {[%clk 0:00:39]} 34. Qf4 {[%clk 0:00:26]}  Rcg8 {[%clk 0:00:19]} 35. Nf6 {[%clk 0:00:13]}  a2 {[%clk 0:00:19]} 36. Rh7+ {[%clk 0:00:09]}  Rxh7 {[%clk 0:00:17]} 37. Rxh7+ {[%clk 0:00:10]}  Kf8 {[%clk 0:00:17]} 38. Nxd7+ {[%clk 0:00:11]}  Ke8 {[%clk 0:00:17]} 39. Qxf7+ {[%clk 0:00:12]}  Kd8 {[%clk 0:00:15]} 40. Qxe7+ {[%clk 0:00:13]}  Kc7 {[%clk 0:00:15]} 41. Qd6+ {[%clk 0:00:11]}  Kb7 {[%clk 0:00:12]} 42. Nc5+ {[%clk 0:00:09]}  Kc8 {[%clk 0:00:12]} 43. Qc7# {[%clk 0:00:09]} 1-0


[Site "https://www.chess.com"]

[Event "Titled Tuesday Blitz October 31 Late 2023"]
[White "Cordova, Emilio"]
[Black "Goltsev, Dmitry"]
[WhiteFideId "3801497"]
[BlackFideId "24176710"]
[WhiteElo "2915"]
[BlackElo "2661"]
[Result "1-0"]
[Round "7"]
[TimeControl "180+1"]
[Date "2023.10.31"]
[WhiteClock "0:01:59"]
[BlackClock "0:00:00"]
[Board "23"]

1. d4 {[%clk 0:03:00]}  e6 {[%clk 0:02:59]} 2. c4 {[%clk 0:02:59]}  b6 {[%clk 0:02:58]} 3. a3 {[%clk 0:02:58]}  Nf6 {[%clk 0:02:57]} 4. Nc3 {[%clk 0:02:58]}  Bb7 {[%clk 0:02:57]} 5. Bg5 {[%clk 0:02:58]}  Be7 {[%clk 0:02:57]} 6. Qc2 {[%clk 0:02:58]}  h6 {[%clk 0:02:57]} 7. Bh4 {[%clk 0:02:57]}  d5 {[%clk 0:02:58]} 8. Nf3 {[%clk 0:02:57]}  Nbd7 {[%clk 0:02:57]} 9. Rd1 {[%clk 0:02:56]}  O-O {[%clk 0:02:50]} 10. e3 {[%clk 0:02:56]}  Ne4 {[%clk 0:02:48]} 11. Bg3 {[%clk 0:02:55]}  c5 {[%clk 0:02:33]} 12. cxd5 {[%clk 0:02:55]}  exd5 {[%clk 0:02:31]} 13. dxc5 {[%clk 0:02:55]}  Ndxc5 {[%clk 0:02:28]} 14. Bd3 {[%clk 0:02:51]}  Nxd3+ {[%clk 0:02:24]} 15. Qxd3 {[%clk 0:02:51]}  Bf6 {[%clk 0:02:17]} 16. Be5 {[%clk 0:02:46]}  Re8 {[%clk 0:02:12]} 17. Bxf6 {[%clk 0:02:41]}  Qxf6 {[%clk 0:02:10]} 18. Qd4 {[%clk 0:02:41]}  Qg6 {[%clk 0:01:56]} 19. O-O {[%clk 0:02:38]}  Rac8 {[%clk 0:01:55]} 20. Nxd5 {[%clk 0:02:24]}  Rc5 {[%clk 0:01:31]} 21. Ne7+ {[%clk 0:02:15]}  Rxe7 {[%clk 0:01:31]} 22. Qd8+ {[%clk 0:02:14]}  Kh7 {[%clk 0:01:32]} 23. Qxe7 {[%clk 0:02:15]}  Ba8 {[%clk 0:00:18]} 24. Rd8 {[%clk 0:02:13]}  Nd2 {[%clk 0:00:06]} 25. Nh4 {[%clk 0:02:07]}  Qxg2+ {[%clk 0:00:03]} 26. Nxg2 {[%clk 0:02:06]}  Nf3+ {[%clk 0:00:03]} 27. Kh1 {[%clk 0:02:06]}  Rh5 {[%clk 0:00:00]} 28. Qc7 {[%clk 0:01:59]} 1-0


[Site "https://www.chess.com"]

[Event "Titled Tuesday Blitz October 31 Late 2023"]
[White "reevecanada"]
[Black "Kobo, Ori"]
[BlackFideId "2812320"]
[WhiteElo "2641"]
[BlackElo "2812"]
[Result "0-1"]
[Round "7"]
[TimeControl "180+1"]
[Date "2023.10.31"]
[WhiteClock "0:00:06"]
[BlackClock "0:00:34"]
[Board "27"]

1. e4 {[%clk 0:03:00]}  c5 {[%clk 0:02:59]} 2. Nf3 {[%clk 0:02:57]}  g6 {[%clk 0:02:59]} 3. d4 {[%clk 0:02:56]}  cxd4 {[%clk 0:02:59]} 4. Qxd4 {[%clk 0:02:57]}  Nf6 {[%clk 0:02:59]} 5. Bb5 {[%clk 0:02:57]}  a6 {[%clk 0:02:45]} 6. e5 {[%clk 0:02:54]}  axb5 {[%clk 0:02:45]} 7. exf6 {[%clk 0:02:54]}  Nc6 {[%clk 0:02:45]} 8. Qd3 {[%clk 0:02:54]}  exf6 {[%clk 0:02:44]} 9. O-O {[%clk 0:02:52]}  Bg7 {[%clk 0:02:35]} 10. Re1+ {[%clk 0:02:40]}  Ne5 {[%clk 0:02:34]} 11. Qd6 {[%clk 0:02:19]}  Ra6 {[%clk 0:02:14]} 12. Qb4 {[%clk 0:01:49]}  Re6 {[%clk 0:02:11]} 13. Nd4 {[%clk 0:01:48]}  Re7 {[%clk 0:02:07]} 14. Nxb5 {[%clk 0:01:38]}  O-O {[%clk 0:02:05]} 15. Be3 {[%clk 0:01:30]}  f5 {[%clk 0:01:55]} 16. Bc5 {[%clk 0:01:25]}  Re6 {[%clk 0:01:46]} 17. Bxf8 {[%clk 0:01:24]}  Bxf8 {[%clk 0:01:47]} 18. Qd2 {[%clk 0:01:19]}  Nc4 {[%clk 0:01:25]} 19. Qc1 {[%clk 0:01:17]}  Bh6 {[%clk 0:01:22]} 20. Re3 {[%clk 0:00:35]}  Nxe3 {[%clk 0:01:18]} 21. Kh1 {[%clk 0:00:31]}  Ng4 {[%clk 0:01:17]} 22. Qf1 {[%clk 0:00:32]}  Qb6 {[%clk 0:01:15]} 23. h3 {[%clk 0:00:31]}  Nxf2+ {[%clk 0:01:14]} 24. Kh2 {[%clk 0:00:31]}  Qe3 {[%clk 0:01:08]} 25. g3 {[%clk 0:00:25]}  Qf3 {[%clk 0:01:04]} 26. Nd2 {[%clk 0:00:18]}  Bxd2 {[%clk 0:01:02]} 27. Nd4 {[%clk 0:00:19]}  Qe3 {[%clk 0:00:45]} 28. Nxe6 {[%clk 0:00:17]}  dxe6 {[%clk 0:00:45]} 29. Qc4 {[%clk 0:00:18]}  Bd7 {[%clk 0:00:42]} 30. Qc7 {[%clk 0:00:17]}  Bc6 {[%clk 0:00:39]} 31. Rg1 {[%clk 0:00:12]}  Qe2 {[%clk 0:00:36]} 32. Qb8+ {[%clk 0:00:09]}  Kg7 {[%clk 0:00:35]} 33. Rg2 {[%clk 0:00:08]}  Ng4+ {[%clk 0:00:34]} 34. hxg4 {[%clk 0:00:06]}  Qxg2# {[%clk 0:00:34]} 0-1


[Site "https://www.chess.com"]

[Event "Titled Tuesday Blitz October 31 Late 2023"]
[White "Manukyan, Sargis A."]
[Black "Troff, Kayden"]
[WhiteFideId "13303970"]
[BlackFideId "2047896"]
[WhiteElo "2637"]
[BlackElo "2782"]
[Result "0-1"]
[Round "7"]
[TimeControl "180+1"]
[Date "2023.10.31"]
[WhiteClock "0:00:10"]
[BlackClock "0:01:07"]
[Board "28"]

1. d4 {[%clk 0:03:00]}  Nf6 {[%clk 0:02:58]} 2. c4 {[%clk 0:03:01]}  g6 {[%clk 0:02:58]} 3. Nc3 {[%clk 0:03:02]}  d5 {[%clk 0:02:58]} 4. Bf4 {[%clk 0:02:59]}  Bg7 {[%clk 0:02:56]} 5. e3 {[%clk 0:02:59]}  O-O {[%clk 0:02:56]} 6. Rc1 {[%clk 0:03:00]}  c5 {[%clk 0:02:49]} 7. dxc5 {[%clk 0:03:00]}  Qa5 {[%clk 0:02:49]} 8. cxd5 {[%clk 0:02:58]}  Rd8 {[%clk 0:02:50]} 9. Bc4 {[%clk 0:02:46]}  Be6 {[%clk 0:02:48]} 10. Qa4 {[%clk 0:02:17]}  Qxa4 {[%clk 0:02:45]} 11. Nxa4 {[%clk 0:02:17]}  Nxd5 {[%clk 0:02:43]} 12. Bxb8 {[%clk 0:01:59]}  Raxb8 {[%clk 0:02:41]} 13. Ne2 {[%clk 0:01:33]}  Nb4 {[%clk 0:02:36]} 14. Nf4 {[%clk 0:01:14]}  Bxc4 {[%clk 0:02:20]} 15. Rxc4 {[%clk 0:01:13]}  Nxa2 {[%clk 0:02:18]} 16. Ke2 {[%clk 0:01:10]}  b5 {[%clk 0:02:15]} 17. cxb6 {[%clk 0:01:09]}  axb6 {[%clk 0:02:15]} 18. Rc7 {[%clk 0:00:25]}  e5 {[%clk 0:01:37]} 19. Nd3 {[%clk 0:00:20]}  e4 {[%clk 0:01:36]} 20. Nc1 {[%clk 0:00:18]}  Nb4 {[%clk 0:01:31]} 21. Rc4 {[%clk 0:00:17]}  b5 {[%clk 0:01:31]} 22. Rxb4 {[%clk 0:00:17]}  bxa4 {[%clk 0:01:31]} 23. Rxe4 {[%clk 0:00:06]}  Rxb2+ {[%clk 0:01:29]} 24. Kf3 {[%clk 0:00:06]}  a3 {[%clk 0:01:29]} 25. Ne2 {[%clk 0:00:06]}  Ra8 {[%clk 0:01:23]} 26. Nd4 {[%clk 0:00:05]}  a2 {[%clk 0:01:22]} 27. Ra1 {[%clk 0:00:05]}  Bxd4 {[%clk 0:01:11]} 28. Rxd4 {[%clk 0:00:05]}  Rb1 {[%clk 0:01:12]} 29. Rd1 {[%clk 0:00:03]}  Rxd1 {[%clk 0:01:12]} 30. Rxd1 {[%clk 0:00:03]}  a1=Q {[%clk 0:01:12]} 31. Rxa1 {[%clk 0:00:04]}  Rxa1 {[%clk 0:01:12]} 32. h4 {[%clk 0:00:05]}  h5 {[%clk 0:01:09]} 33. g3 {[%clk 0:00:06]}  Kg7 {[%clk 0:01:08]} 34. Kf4 {[%clk 0:00:06]}  Ra2 {[%clk 0:01:07]} 35. f3 {[%clk 0:00:07]}  f6 {[%clk 0:01:06]} 36. e4 {[%clk 0:00:07]}  Ra3 {[%clk 0:01:06]} 37. g4 {[%clk 0:00:08]}  hxg4 {[%clk 0:01:06]} 38. fxg4 {[%clk 0:00:08]}  Ra5 {[%clk 0:01:06]} 39. h5 {[%clk 0:00:08]}  gxh5 {[%clk 0:01:06]} 40. e5 {[%clk 0:00:08]}  Rxe5 {[%clk 0:01:06]} 41. gxh5 {[%clk 0:00:09]}  Rxh5 {[%clk 0:01:07]} 42. Kg4 {[%clk 0:00:10]}  Rg5+ {[%clk 0:01:07]} 43. Kf4 {[%clk 0:00:11]}  Kg6 {[%clk 0:01:07]} 44. Kf3 {[%clk 0:00:10]}  Kf5 {[%clk 0:01:07]} 0-1


[Site "https://www.chess.com"]

[Event "Titled Tuesday Blitz October 31 Late 2023"]
[White "Haydon, David L"]
[Black "Darini, Pouria"]
[WhiteFideId "415405"]
[BlackFideId "12502200"]
[WhiteElo "2626"]
[BlackElo "2748"]
[Result "1-0"]
[Round "7"]
[TimeControl "180+1"]
[Date "2023.10.31"]
[WhiteClock "0:00:55"]
[BlackClock "0:00:05"]
[Board "29"]

1. d4 {[%clk 0:03:00]}  Nf6 {[%clk 0:02:59]} 2. c4 {[%clk 0:02:59]}  e6 {[%clk 0:02:58]} 3. Nc3 {[%clk 0:02:59]}  Bb4 {[%clk 0:02:58]} 4. Bd2 {[%clk 0:02:59]}  O-O {[%clk 0:02:53]} 5. Nf3 {[%clk 0:02:58]}  d5 {[%clk 0:02:52]} 6. e3 {[%clk 0:02:57]}  b6 {[%clk 0:02:44]} 7. Qc2 {[%clk 0:02:53]}  Bb7 {[%clk 0:02:41]} 8. Be2 {[%clk 0:02:51]}  dxc4 {[%clk 0:02:38]} 9. Bxc4 {[%clk 0:02:49]}  c5 {[%clk 0:02:36]} 10. dxc5 {[%clk 0:02:44]}  Bxc5 {[%clk 0:02:27]} 11. O-O {[%clk 0:02:41]}  Nbd7 {[%clk 0:02:24]} 12. Be2 {[%clk 0:02:39]}  Rc8 {[%clk 0:02:24]} 13. Rad1 {[%clk 0:02:38]}  a6 {[%clk 0:02:19]} 14. a3 {[%clk 0:02:27]}  b5 {[%clk 0:02:19]} 15. Qb1 {[%clk 0:02:21]}  Ba7 {[%clk 0:02:10]} 16. Ng5 {[%clk 0:02:18]}  h6 {[%clk 0:02:04]} 17. Bf3 {[%clk 0:02:17]}  Bxf3 {[%clk 0:02:00]} 18. Nxf3 {[%clk 0:02:17]}  Qc7 {[%clk 0:01:50]} 19. Rc1 {[%clk 0:02:13]}  Qb7 {[%clk 0:01:43]} 20. Rfd1 {[%clk 0:02:11]}  Nc5 {[%clk 0:01:33]} 21. Be1 {[%clk 0:02:06]}  Nb3 {[%clk 0:01:21]} 22. Rc2 {[%clk 0:02:04]}  a5 {[%clk 0:01:16]} 23. a4 {[%clk 0:01:59]}  bxa4 {[%clk 0:01:01]} 24. Nxa4 {[%clk 0:01:59]}  Nd5 {[%clk 0:00:49]} 25. Rxc8 {[%clk 0:01:50]}  Rxc8 {[%clk 0:00:48]} 26. Nc3 {[%clk 0:01:51]}  Nb4 {[%clk 0:00:43]} 27. Ne4 {[%clk 0:01:48]}  Qc6 {[%clk 0:00:24]} 28. Bxb4 {[%clk 0:01:42]}  axb4 {[%clk 0:00:24]} 29. Ne5 {[%clk 0:01:29]}  Qc2 {[%clk 0:00:18]} 30. Rd8+ {[%clk 0:01:26]}  Kh7 {[%clk 0:00:18]} 31. Qxc2 {[%clk 0:01:20]}  Rxc2 {[%clk 0:00:19]} 32. g4 {[%clk 0:01:19]}  f5 {[%clk 0:00:17]} 33. Nd6 {[%clk 0:01:13]}  Rxb2 {[%clk 0:00:11]} 34. Ndf7 {[%clk 0:01:12]}  g5 {[%clk 0:00:06]} 35. Rd7 {[%clk 0:01:11]}  Bxe3 {[%clk 0:00:04]} 36. fxe3 {[%clk 0:01:10]}  Rb1+ {[%clk 0:00:04]} 37. Kg2 {[%clk 0:01:09]}  Rb2+ {[%clk 0:00:05]} 38. Kg3 {[%clk 0:01:09]}  Nd2 {[%clk 0:00:06]} 39. Nxg5+ {[%clk 0:01:08]}  Kg8 {[%clk 0:00:06]} 40. Nxe6 {[%clk 0:01:02]}  Nf1+ {[%clk 0:00:07]} 41. Kf3 {[%clk 0:00:56]}  Nxh2+ {[%clk 0:00:05]} 42. Kf4 {[%clk 0:00:56]}  Rf2+ {[%clk 0:00:05]} 43. Kg3 {[%clk 0:00:56]}  Nxg4 {[%clk 0:00:05]} 44. Rg7+ {[%clk 0:00:54]}  Kh8 {[%clk 0:00:05]} 45. Ng6# {[%clk 0:00:55]} 1-0


[Site "https://www.chess.com"]

[Event "Titled Tuesday Blitz October 31 Late 2023"]
[White "Roberson, Peter T"]
[Black "Korchmar, Vasiliy"]
[WhiteFideId "412384"]
[BlackFideId "24131750"]
[WhiteElo "2603"]
[BlackElo "2739"]
[Result "0-1"]
[Round "7"]
[TimeControl "180+1"]
[Date "2023.10.31"]
[WhiteClock "0:00:00"]
[BlackClock "0:01:30"]
[Board "32"]

1. e4 {[%clk 0:03:00]}  c5 {[%clk 0:02:59]} 2. Nf3 {[%clk 0:03:00]}  d6 {[%clk 0:02:59]} 3. c3 {[%clk 0:03:00]}  Nf6 {[%clk 0:02:58]} 4. Bd3 {[%clk 0:03:00]}  g6 {[%clk 0:02:55]} 5. O-O {[%clk 0:02:59]}  Bg7 {[%clk 0:02:55]} 6. Bc2 {[%clk 0:02:59]}  O-O {[%clk 0:02:54]} 7. h3 {[%clk 0:02:59]}  e5 {[%clk 0:02:49]} 8. d4 {[%clk 0:02:59]}  cxd4 {[%clk 0:02:38]} 9. cxd4 {[%clk 0:03:00]}  exd4 {[%clk 0:02:38]} 10. Nxd4 {[%clk 0:03:00]}  Nc6 {[%clk 0:02:32]} 11. Re1 {[%clk 0:02:25]}  d5 {[%clk 0:02:28]} 12. e5 {[%clk 0:02:23]}  Ne4 {[%clk 0:02:26]} 13. Bf4 {[%clk 0:02:16]}  Nxe5 {[%clk 0:02:17]} 14. Nc3 {[%clk 0:01:19]}  Nc4 {[%clk 0:02:04]} 15. Bb3 {[%clk 0:00:41]}  Nxb2 {[%clk 0:02:00]} 16. Qc2 {[%clk 0:00:30]}  Bxd4 {[%clk 0:01:59]} 17. Nxe4 {[%clk 0:00:28]}  dxe4 {[%clk 0:01:59]} 18. Bh6 {[%clk 0:00:17]}  Re8 {[%clk 0:01:47]} 19. Rxe4 {[%clk 0:00:08]}  Bf5 {[%clk 0:01:42]} 20. Bxf7+ {[%clk 0:00:07]}  Kxf7 {[%clk 0:01:41]} 21. Qb3+ {[%clk 0:00:08]}  Be6 {[%clk 0:01:34]} 22. Qxb7+ {[%clk 0:00:00]}  Kg8 {[%clk 0:01:30]} 0-1


[Site "https://www.chess.com"]

[Event "Titled Tuesday Blitz October 31 Late 2023"]
[White "Kozusek, Daniel"]
[Black "Gedajlovic, Max"]
[WhiteFideId "349500"]
[BlackFideId "2616840"]
[WhiteElo "2599"]
[BlackElo "2736"]
[Result "1/2-1/2"]
[Round "7"]
[TimeControl "180+1"]
[Date "2023.10.31"]
[WhiteClock "0:00:08"]
[BlackClock "0:00:05"]
[Board "33"]

1. d4 {[%clk 0:03:00]}  Nf6 {[%clk 0:02:59]} 2. c4 {[%clk 0:02:59]}  e6 {[%clk 0:02:59]} 3. Nf3 {[%clk 0:02:59]}  d5 {[%clk 0:02:59]} 4. Nc3 {[%clk 0:02:59]}  a6 {[%clk 0:02:58]} 5. c5 {[%clk 0:02:57]}  b6 {[%clk 0:02:58]} 6. cxb6 {[%clk 0:02:54]}  cxb6 {[%clk 0:02:59]} 7. Bf4 {[%clk 0:02:50]}  Bd6 {[%clk 0:02:58]} 8. Bg3 {[%clk 0:02:46]}  O-O {[%clk 0:02:58]} 9. e3 {[%clk 0:02:46]}  Nc6 {[%clk 0:02:55]} 10. Bd3 {[%clk 0:02:46]}  Bb7 {[%clk 0:02:55]} 11. Rc1 {[%clk 0:02:42]}  b5 {[%clk 0:02:55]} 12. O-O {[%clk 0:02:36]}  Rc8 {[%clk 0:02:55]} 13. Bh4 {[%clk 0:02:35]}  Be7 {[%clk 0:02:54]} 14. Bb1 {[%clk 0:02:22]}  g6 {[%clk 0:02:33]} 15. Qe2 {[%clk 0:01:53]}  Ne8 {[%clk 0:02:31]} 16. Bxe7 {[%clk 0:01:52]}  Qxe7 {[%clk 0:02:32]} 17. h4 {[%clk 0:01:49]}  Nd6 {[%clk 0:02:30]} 18. h5 {[%clk 0:01:49]}  Kg7 {[%clk 0:02:28]} 19. e4 {[%clk 0:01:35]}  dxe4 {[%clk 0:02:10]} 20. Nxe4 {[%clk 0:01:35]}  Nf5 {[%clk 0:02:10]} 21. Nc5 {[%clk 0:01:16]}  Ncxd4 {[%clk 0:01:33]} 22. Nxd4 {[%clk 0:01:14]}  Rxc5 {[%clk 0:01:32]} 23. Bxf5 {[%clk 0:00:43]}  gxf5 {[%clk 0:01:24]} 24. Qe3 {[%clk 0:00:32]}  Rfc8 {[%clk 0:01:15]} 25. Rxc5 {[%clk 0:00:20]}  Rxc5 {[%clk 0:01:15]} 26. Rc1 {[%clk 0:00:20]}  Rxc1+ {[%clk 0:01:12]} 27. Qxc1 {[%clk 0:00:20]}  Qf6 {[%clk 0:01:11]} 28. Qc5 {[%clk 0:00:17]}  Bd5 {[%clk 0:01:10]} 29. b3 {[%clk 0:00:15]}  Qe5 {[%clk 0:01:09]} 30. Nc6 {[%clk 0:00:11]}  Qe1+ {[%clk 0:01:04]} 31. Kh2 {[%clk 0:00:11]}  Qe4 {[%clk 0:00:50]} 32. Qc3+ {[%clk 0:00:06]}  Kh6 {[%clk 0:00:46]} 33. Qf6+ {[%clk 0:00:02]}  Kxh5 {[%clk 0:00:41]} 34. Qxf7+ {[%clk 0:00:03]}  Kh6 {[%clk 0:00:42]} 35. Qf6+ {[%clk 0:00:03]}  Kh5 {[%clk 0:00:42]} 36. Qf7+ {[%clk 0:00:03]}  Kh6 {[%clk 0:00:39]} 37. Qf6+ {[%clk 0:00:03]}  Kh5 {[%clk 0:00:39]} 38. f3 {[%clk 0:00:04]}  Qh4+ {[%clk 0:00:39]} 39. Qxh4+ {[%clk 0:00:04]}  Kxh4 {[%clk 0:00:40]} 40. Nb4 {[%clk 0:00:03]}  Bb7 {[%clk 0:00:40]} 41. Nd3 {[%clk 0:00:03]}  Kg5 {[%clk 0:00:37]} 42. Nc5 {[%clk 0:00:04]}  Bc8 {[%clk 0:00:37]} 43. Nd3 {[%clk 0:00:04]}  f4 {[%clk 0:00:36]} 44. Ne5 {[%clk 0:00:04]}  Kf5 {[%clk 0:00:34]} 45. Nc6 {[%clk 0:00:05]}  Bb7 {[%clk 0:00:28]} 46. Nd8 {[%clk 0:00:02]}  Bd5 {[%clk 0:00:25]} 47. Nf7 {[%clk 0:00:02]}  Kf6 {[%clk 0:00:22]} 48. Nd6 {[%clk 0:00:03]}  Ke5 {[%clk 0:00:22]} 49. Ne8 {[%clk 0:00:02]}  Kd4 {[%clk 0:00:20]} 50. Nc7 {[%clk 0:00:03]}  Kc3 {[%clk 0:00:16]} 51. Nxa6 {[%clk 0:00:02]}  Kb2 {[%clk 0:00:16]} 52. a4 {[%clk 0:00:02]}  bxa4 {[%clk 0:00:12]} 53. bxa4 {[%clk 0:00:03]}  Ka3 {[%clk 0:00:13]} 54. Nc5 {[%clk 0:00:04]}  Kb4 {[%clk 0:00:12]} 55. Nd3+ {[%clk 0:00:05]}  Kxa4 {[%clk 0:00:08]} 56. Nxf4 {[%clk 0:00:06]}  Bc4 {[%clk 0:00:08]} 57. Kg3 {[%clk 0:00:06]}  Kb5 {[%clk 0:00:09]} 58. Nh5 {[%clk 0:00:06]}  Kc5 {[%clk 0:00:09]} 59. Nf6 {[%clk 0:00:07]}  h6 {[%clk 0:00:09]} 60. Ng4 {[%clk 0:00:07]}  h5 {[%clk 0:00:07]} 61. Nf6 {[%clk 0:00:08]}  Kd4 {[%clk 0:00:07]} 62. Nxh5 {[%clk 0:00:08]}  e5 {[%clk 0:00:08]} 63. Nf6 {[%clk 0:00:09]}  Bd3 {[%clk 0:00:08]} 64. Ng4 {[%clk 0:00:09]}  e4 {[%clk 0:00:09]} 65. f4 {[%clk 0:00:06]}  e3 {[%clk 0:00:09]} 66. Kf3 {[%clk 0:00:06]}  Be4+ {[%clk 0:00:06]} 67. Ke2 {[%clk 0:00:07]}  Bxg2 {[%clk 0:00:05]} 68. Nxe3 {[%clk 0:00:08]}  Be4 {[%clk 0:00:05]} 69. f5 {[%clk 0:00:08]}  Bxf5 {[%clk 0:00:05]} 1/2-1/2


[Site "https://www.chess.com"]